fUSD/lending_fUSD_20240116
["ID","MTS","AMOUNT","RATE_DAILY","PERIOD"]
[311771490,1705384245906,-500.0,0.00022152,2]
[311771491,1705384245915,-500.0,0.00022152,2]
[311771492,1705384245925,-524.61,0.00022152,2]
[311771493,1705384245935,-500.0,0.00022152,2]
[311771494,1705384245945,-517.6,0.00022152,2]
[311771495,1705384245955,-500.0,0.00022152,2]
[311771496,1705384245964,-500.0,0.00022152,2]
[311771497,1705384245973,-500.0,0.00022152,2]
[311771498,1705384245983,-500.0,0.00022152,2]
[311771499,1705384245993,-500.0,0.00022152,2]
[311771500,1705384246003,-500.0,0.00022152,2]
[311771501,1705384246018,-640.36,0.00022152,2]
[311771502,1705384246028,-500.0,0.00022152,2]
[311771503,1705384246038,-500.0,0.00022152,2]
[311771504,1705384246047,-500.0,0.00022152,2]
[311771505,1705384246057,-491.11127023,0.00022152,2]
[311771506,1705384246066,-500.0,0.00022152,2]
[311771507,1705384246077,-500.0,0.00022152,2]
[311771508,1705384246086,-500.0,0.00022152,2]
[311771509,1705384246096,-549.36245042,0.00022152,2]
[311771510,1705384246105,-500.0,0.00022152,2]
[311771511,1705384246115,-500.0,0.00022152,2]
[311771512,1705384246126,-500.0,0.00022152,2]
[311771513,1705384246136,-500.0,0.00022152,2]
[311771514,1705384246147,-500.0,0.00022152,2]
[311771515,1705384246157,-500.0,0.00022152,2]
[311771516,1705384246166,-500.0,0.00022152,2]
[311771517,1705384246175,-165.93122371,0.00022152,2]
[311771518,1705384246185,-500.0,0.00022152,2]
[311771519,1705384246195,-500.0,0.00022152,2]
[311771520,1705384246204,-500.0,0.00022152,2]
[311771521,1705384246214,-500.0,0.00022152,2]
[311771522,1705384246223,-675.91,0.00022152,2]
[311771523,1705384246233,-500.0,0.00022152,2]
[311771524,1705384246242,-500.0,0.00022152,2]
[311771525,1705384246252,-500.0,0.00022152,2]
[311771526,1705384246263,-500.0,0.00022152,2]
[311771527,1705384246272,-500.0,0.00022152,2]
[311771528,1705384246282,-500.0,0.00022152,2]
[311771529,1705384246291,-500.0,0.00022152,2]
[311771530,1705384246303,-500.0,0.00022152,2]
[311771531,1705384246320,-500.0,0.00022152,2]
[311771532,1705384246333,-500.0,0.00022152,2]
[311771533,1705384246343,-221.06803862,0.00022152,2]
[311771534,1705384246354,-519.92,0.00022152,2]
[311771535,1705384246364,-500.0,0.00022152,2]
[311771536,1705384246373,-500.0,0.00022152,2]
[311771537,1705384246383,-500.0,0.00022152,2]
[311771538,1705384246392,-1068.12,0.00022152,2]
[311771539,1705384246404,-500.0,0.00022152,2]
[311771540,1705384246414,-256.237085,0.00022152,2]
[311771541,1705384246425,-500.0,0.00022152,2]
[311771542,1705384246435,-514.47179954,0.00022152,2]
[311771543,1705384246445,-500.0,0.00022152,2]
[311771544,1705384246456,-500.0,0.00022152,2]
[311771545,1705384246466,-529.31391837,0.00022152,2]
[311771546,1705384246475,-500.0,0.00022152,2]
[311771547,1705384246485,-500.0,0.00022152,2]
[311771548,1705384246494,-500.0,0.00022152,2]
[311771549,1705384246504,-500.0,0.00022152,2]
[311771550,1705384246514,-500.0,0.00022152,2]
[311771551,1705384246528,-500.0,0.00022152,2]
[311771552,1705384246538,-500.0,0.00022152,2]
[311771553,1705384246550,-500.0,0.00022152,2]
[311771554,1705384246560,-500.0,0.00022152,2]
[311771555,1705384246570,-500.0,0.00022152,2]
[311771556,1705384246581,-500.0,0.00022152,2]
[311771557,1705384246591,-500.0,0.00022152,2]
[311771558,1705384246601,-500.0,0.00022152,2]
[311771559,1705384246610,-878.31,0.00022152,2]
[311771560,1705384246619,-500.0,0.00022152,2]
[311771561,1705384246629,-500.0,0.00022152,2]
[311771562,1705384246638,-500.0,0.00022152,2]
[311771563,1705384246648,-500.0,0.00022152,2]
[311771564,1705384246658,-500.0,0.00022152,2]
[311771565,1705384246667,-500.0,0.00022152,2]
[311771566,1705384246677,-500.0,0.00022152,2]
[311771567,1705384246686,-536.34748326,0.00022152,2]
[311771568,1705384246696,-620.37,0.00022152,2]
[311771569,1705384246705,-712.14,0.00022152,2]
[311771570,1705384246715,-409.89321909,0.0002217,2]
[311771571,1705384246725,-154.27,0.0002217,2]
[311771572,1705384246734,-593.61809177,0.00022175,2]
[311771573,1705384246745,-207.0,0.00022182,2]
[311771574,1705384246755,-390.75,0.0002227,2]
[311771575,1705384246765,-409.89321909,0.00022291,2]
[311771576,1705384246774,-1462.16272741,0.000223,2]
[311771577,1705384246784,-235.10622754,0.000223,2]
[311771578,1705384246793,-593.61809177,0.000223,2]
[311771579,1705384246803,-178.39817792,0.00022324,2]
[311771580,1705384246812,-172.71378818,0.00022324,2]
[311771581,1705384246822,-175.955578,0.00022324,5]
[311771582,1705384246831,-157.52,0.00022328,2]
[311771583,1705384246841,-154.27,0.00022334,2]
[311771584,1705384246850,-158.13,0.00022359,2]
[311771585,1705384246860,-2157.63,0.00022398,2]
[311771586,1705384246869,-5690.6930067,0.00022398,2]
[311771587,1705384246879,-294.22,0.000224,2]
[311771588,1705384246889,-418.24,0.000224,2]
[311771589,1705384246898,-408.4,0.000224,2]
[311771590,1705384246908,-150.0,0.000224,2]
[311771591,1705384246917,-294.22,0.000224,2]
[311771592,1705384246926,-238.74,0.000224,2]
[311771593,1705384246936,-314.46,0.000224,2]
[311771594,1705384246946,-408.4,0.000224,2]
[311771595,1705384246955,-314.46,0.000224,2]
[311771596,1705384246965,-418.24,0.000224,2]
[311771597,1705384246974,-294.22,0.000224,2]
[311771598,1705384246984,-418.24,0.000224,2]
[311771599,1705384246994,-408.4,0.000224,2]
[311771600,1705384247004,-294.22,0.000224,2]
[311771601,1705384247013,-314.46,0.000224,2]
[311771602,1705384247022,-418.24,0.000224,2]
[311771603,1705384247031,-294.22,0.000224,2]
[311771604,1705384247041,-408.4,0.000224,2]
[311771605,1705384247050,-294.22,0.000224,2]
[311771606,1705384247060,-418.24,0.000224,2]
[311771607,1705384247070,-418.24,0.000224,2]
[311771608,1705384247080,-314.46,0.000224,2]
[311771609,1705384247089,-294.22,0.000224,2]
[311771610,1705384247099,-408.4,0.000224,2]
[311771611,1705384247110,-174.32,0.000224,2]
[311771612,1705384247121,-586.53,0.000224,2]
[311771613,1705384247132,-294.22,0.000224,2]
[311771614,1705384247143,-294.22,0.000224,2]
[311771615,1705384247154,-409.89321909,0.00022413,2]
[311771616,1705384247164,-724.61,0.00022421,2]
[311771617,1705384247174,-550.27,0.00022421,2]
[311771618,1705384247183,-500.0,0.00022421,2]
[311771619,1705384247192,-500.0,0.00022421,2]
[311771620,1705384247213,-538.68,0.00022421,2]
[311771621,1705384247224,-554.0,0.00022421,2]
[311771622,1705384247237,-1485517.43631242,0.00022422,2]
[311771623,1705384247248,-500.0,0.00022422,2]
[311771624,1705384247257,-500.0,0.00022422,2]
[311771625,1705384247268,-500.0,0.00022422,2]
[311771626,1705384247278,-500.0,0.00022422,2]
[311771627,1705384247288,-500.0,0.00022422,2]
[311771628,1705384247298,-500.0,0.00022422,2]
[311771629,1705384247308,-500.0,0.00022422,2]
[311771630,1705384247319,-500.0,0.00022422,2]
[311771631,1705384247330,-500.0,0.00022422,2]
[311771632,1705384247339,-500.0,0.00022422,2]
[311771633,1705384247350,-500.0,0.00022422,2]
[311771634,1705384247360,-500.0,0.00022422,2]
[311771635,1705384247369,-500.0,0.00022422,2]
[311771636,1705384247378,-500.0,0.00022422,2]
[311771637,1705384247387,-500.0,0.00022422,2]
[311771638,1705384247397,-500.0,0.00022422,2]
[311771639,1705384247406,-500.0,0.00022422,2]
[311771640,1705384247415,-500.0,0.00022422,2]
[311771641,1705384247424,-500.0,0.00022422,2]
[311771642,1705384247433,-500.0,0.00022422,2]
[311771643,1705384247444,-817.44,0.00022422,2]
[311771644,1705384247455,-500.0,0.00022422,2]
[311771645,1705384247465,-500.0,0.00022422,2]
[311771646,1705384247474,-500.0,0.00022422,2]
[311771647,1705384247484,-500.0,0.00022422,5]
[311771648,1705384247495,-572.45,0.00022422,2]
[311771649,1705384247505,-500.0,0.00022422,2]
[311771650,1705384247515,-500.0,0.00022422,2]
[311771651,1705384247525,-6396.96,0.00022422,2]
[311771652,1705384247535,-453.5459714,0.00022422,2]
[311771653,1705384247545,-500.0,0.00022422,2]
[311771654,1705384247556,-500.0,0.00022422,2]
[311771655,1705384247565,-9892.67,0.00022422,2]
[311771656,1705384247575,-512.72,0.00022422,2]
[311771657,1705384247584,-500.0,0.00022422,2]
[311771658,1705384247594,-510.48,0.00022422,2]
[311771659,1705384247604,-500.0,0.00022422,2]
[311771660,1705384247613,-1373.3,0.00022422,2]
[311771661,1705384247622,-1446.59,0.00022422,2]
[311771662,1705384247632,-500.0,0.00022422,2]
[311771663,1705384247641,-576.67075282,0.00022422,2]
[311771664,1705384247651,-1283.05,0.00022422,2]
[311771665,1705384247661,-1084.57,0.00022422,2]
[311771666,1705384247670,-500.0,0.00022422,2]
[311771667,1705384247679,-511.91,0.00022422,2]
[311771668,1705384247688,-500.0,0.00022422,2]
[311771669,1705384247697,-500.0,0.00022422,2]
[311771670,1705384247706,-500.0,0.00022422,2]
[311771671,1705384247715,-500.0,0.00022422,2]
[311771672,1705384247725,-5432.58,0.00022422,2]
[311771673,1705384247734,-500.0,0.00022422,2]
[311771674,1705384247743,-3291.72,0.00022422,2]
[311771675,1705384247753,-500.0,0.00022422,2]
[311771676,1705384247762,-500.0,0.00022422,2]
[311771677,1705384247772,-642.24,0.00022422,2]
[311771678,1705384247782,-500.0,0.00022422,2]
[311771679,1705384247792,-16986.28,0.00022422,2]
[311771680,1705384247801,-500.0,0.00022422,2]
[311771681,1705384247811,-500.0,0.00022422,2]
[311771682,1705384247821,-408.18354686,0.00022422,2]
[311771683,1705384247831,-1360.97,0.00022422,2]
[311771684,1705384247840,-500.0,0.00022422,2]
[311771685,1705384247850,-770.78,0.00022422,2]
[311771686,1705384247862,-500.0,0.00022422,2]
[311771687,1705384247872,-1230.75,0.00022422,2]
[311771688,1705384247881,-500.0,0.00022422,2]
[311771689,1705384247891,-500.0,0.00022422,2]
[311771690,1705384247900,-500.0,0.00022422,2]
[311771691,1705384247910,-500.0,0.00022422,2]
[311771692,1705384247919,-1054.41,0.00022422,2]
[311771693,1705384247929,-1560.12,0.00022422,2]
[311771694,1705384247939,-854.04,0.00022422,2]
[311771695,1705384247948,-500.0,0.00022422,2]
[311771696,1705384247958,-500.0,0.00022422,2]
[311771697,1705384247967,-500.0,0.00022422,2]
[311771698,1705384247977,-500.0,0.00022422,2]
[311771699,1705384247986,-500.0,0.00022422,2]
[311771700,1705384247996,-500.0,0.00022422,2]
[311771701,1705384248006,-2424.1,0.00022422,2]
[311771702,1705384248015,-1255.23,0.00022422,2]
[311771703,1705384248025,-1106.89,0.00022422,2]
[311771704,1705384248034,-656.19,0.00022422,2]
[311771705,1705384248044,-500.0,0.00022422,2]
[311771706,1705384248053,-500.0,0.00022422,2]
[311771707,1705384248062,-500.0,0.00022422,2]
[311771708,1705384248072,-500.0,0.00022422,2]
[311771709,1705384248082,-153.54648296,0.00022422,2]
[311771710,1705384248091,-836.27,0.00022422,2]
[311771711,1705384248100,-500.0,0.00022422,2]
[311771712,1705384248110,-500.0,0.00022422,2]
[311771713,1705384248119,-956.94,0.00022422,2]
[311771714,1705384248129,-500.0,0.00022422,2]
[311771715,1705384248138,-598.05,0.00022422,2]
[311771716,1705384248147,-899.51,0.00022422,2]
[311771717,1705384248156,-500.0,0.00022422,2]
[311771718,1705384248166,-500.0,0.00022422,2]
[311771719,1705384248175,-511.01,0.00022422,2]
[311771720,1705384248185,-2036.34,0.00022422,2]
[311771721,1705384248194,-2130.1,0.00022422,2]
[311771722,1705384248204,-1340.26,0.00022422,2]
[311771723,1705384248214,-500.0,0.00022422,2]
[311771724,1705384248224,-801.61,0.00022422,2]
[311771725,1705384248234,-500.0,0.00022422,2]
[311771726,1705384248243,-500.0,0.00022422,2]
[311771727,1705384248253,-500.0,0.00022422,2]
[311771728,1705384248263,-500.0,0.00022422,2]
[311771729,1705384248273,-433.07223952,0.00022422,2]
[311771730,1705384248283,-503.37,0.00022422,2]
[311771731,1705384248293,-1005.16,0.00022422,2]
[311771732,1705384248303,-500.0,0.00022422,2]
[311771733,1705384248313,-3319.37,0.00022422,2]
[311771734,1705384248323,-500.0,0.00022422,2]
[311771735,1705384248334,-1017.46,0.00022422,2]
[311771736,1705384248344,-812.76,0.00022422,2]
[311771737,1705384248354,-1047.83,0.00022422,2]
[311771738,1705384248364,-500.0,0.00022422,2]
[311771739,1705384248374,-500.0,0.00022422,2]
[311771740,1705384248385,-2010.35,0.00022422,2]
[311771741,1705384248396,-500.0,0.00022422,2]
[311771742,1705384248407,-956.2,0.00022422,2]
[311771743,1705384248418,-500.0,0.00022422,2]
[311771744,1705384248430,-500.0,0.00022422,2]
[311771745,1705384248441,-3354.75,0.00022422,2]
[311771746,1705384248452,-1583.46,0.00022422,2]
[311771747,1705384248463,-624.77621778,0.00022422,2]
[311771748,1705384248474,-923.96,0.00022422,2]
[311771749,1705384248486,-500.0,0.00022422,2]
[311771750,1705384248497,-6046.57,0.00022422,2]
[311771751,1705384248508,-1654.42,0.00022422,2]
[311771752,1705384248521,-2288.39,0.00022422,2]
[311771753,1705384248531,-500.0,0.00022422,2]
[311771754,1705384248542,-515.94,0.00022422,2]
[311771755,1705384248552,-500.0,0.00022422,2]
[311771756,1705384248563,-1139.14,0.00022422,2]
[311771757,1705384248573,-500.0,0.00022422,2]
[311771758,1705384248588,-541.78,0.00022422,2]
[311771759,1705384248599,-500.0,0.00022422,2]
[311771760,1705384248610,-1102.8,0.00022422,2]
[311771761,1705384248621,-742.9,0.00022422,2]
[311771762,1705384248631,-288.99561419,0.00022422,2]
[311771763,1705384248642,-901.15,0.00022422,2]
[311771764,1705384248652,-500.0,0.00022422,2]
[311771765,1705384248662,-500.0,0.00022422,2]
[311771766,1705384248672,-651.35,0.00022422,2]
[311771767,1705384248682,-500.0,0.00022422,2]
[311771768,1705384248918,-1633.52,0.00022422,2]
[311771769,1705384248928,-500.0,0.00022422,2]
[311771770,1705384248939,-1438.2,0.00022422,2]
[311771771,1705384248948,-3499.46,0.00022422,2]
[311771772,1705384248958,-500.0,0.00022423,2]
[311771773,1705384248967,-538.67,0.00022423,2]
[311771774,1705384248977,-731.3,0.00022423,2]
[311771775,1705384248986,-636.08,0.00022423,2]
[311771776,1705384248996,-500.0,0.00022423,2]
[311771777,1705384249006,-500.0,0.00022423,2]
[311771778,1705384249015,-500.0,0.00022423,2]
[311771779,1705384249025,-500.0,0.00022423,2]
[311771780,1705384249034,-500.0,0.00022423,2]
[311771781,1705384249044,-500.0,0.00022423,2]
[311771782,1705384249054,-640.13,0.00022423,2]
[311771783,1705384249064,-500.0,0.00022423,2]
[311771784,1705384249074,-500.0,0.00022423,2]
[311771785,1705384249086,-652.16,0.00022423,2]
[311771786,1705384249095,-500.0,0.00022423,2]
[311771787,1705384249105,-559.21,0.00022423,2]
[311771788,1705384249115,-500.0,0.00022423,2]
[311771789,1705384249128,-533.28,0.00022423,2]
[311771790,1705384249137,-520.8,0.00022423,2]
[311771791,1705384249147,-500.0,0.00022423,2]
[311771792,1705384249157,-500.0,0.00022423,2]
[311771793,1705384249167,-500.0,0.00022423,2]
[311771794,1705384249176,-500.0,0.00022423,2]
[311771795,1705384249187,-532.48,0.00022423,2]
[311771796,1705384249196,-500.0,0.00022423,2]
[311771797,1705384249206,-560.31,0.00022423,2]
[311771798,1705384249216,-517.27,0.00022423,2]
[311771799,1705384249226,-500.0,0.00022423,2]
[311771800,1705384249236,-657.14,0.00022423,2]
[311771801,1705384249245,-624.96,0.00022423,2]
[311771802,1705384249255,-500.0,0.00022423,2]
[311771803,1705384249265,-500.0,0.00022423,2]
[311771804,1705384249275,-529.67,0.00022423,2]
[311771805,1705384249285,-502.51,0.00022423,2]
[311771806,1705384249295,-500.0,0.00022423,2]
[311771807,1705384249304,-541.21,0.00022423,2]
[311771808,1705384249313,-500.0,0.00022423,2]
[311771809,1705384249324,-620.76,0.00022423,2]
[311771810,1705384249334,-500.0,0.00022423,2]
[311771811,1705384249344,-500.0,0.00022423,2]
[311771812,1705384249354,-500.0,0.00022423,2]
[311771813,1705384249364,-500.0,0.00022423,2]
[311771814,1705384249375,-702.95,0.00022423,2]
[311771815,1705384249385,-500.0,0.00022423,2]
[311771816,1705384249395,-500.0,0.00022423,2]
[311771817,1705384249406,-542.47,0.00022423,2]
[311771818,1705384249416,-503.28,0.00022423,2]
[311771819,1705384249427,-500.0,0.00022423,2]
[311771820,1705384249437,-500.0,0.00022423,2]
[311771821,1705384249448,-500.0,0.00022423,2]
[311771822,1705384249463,-519.88,0.00022423,2]
[311771823,1705384249472,-500.0,0.00022423,2]
[311771824,1705384249482,-500.0,0.00022423,2]
[311771825,1705384249492,-577.49,0.00022423,2]
[311771826,1705384249503,-500.0,0.00022423,2]
[311771827,1705384249513,-580.52,0.00022423,2]
[311771828,1705384249522,-500.0,0.00022423,2]
[311771829,1705384249533,-543.71,0.00022423,2]
[311771830,1705384249543,-500.0,0.00022423,2]
[311771831,1705384249552,-500.0,0.00022423,2]
[311771832,1705384249562,-189.34,0.00022423,2]
[311771833,1705384249571,-500.0,0.00022423,2]
[311771834,1705384249582,-500.0,0.00022423,2]
[311771835,1705384249591,-500.0,0.00022423,2]
[311771836,1705384249601,-500.0,0.00022423,2]
[311771837,1705384249611,-208.95732055,0.00022423,2]
[311771838,1705384249620,-545.97,0.00022423,2]
[311771839,1705384249629,-500.0,0.00022423,2]
[311771840,1705384249639,-573.99,0.00022423,2]
[311771841,1705384249649,-2307.4,0.00022423,2]
[311771842,1705384249659,-500.0,0.00022423,2]
[311771843,1705384249669,-4606.58,0.00022423,2]
[311771844,1705384249679,-597.49,0.00022423,2]
[311771845,1705384249688,-692.02,0.00022423,2]
[311771846,1705384249699,-5828.84,0.00022423,2]
[311771847,1705384249708,-500.0,0.00022423,2]
[311771848,1705384249718,-965.89,0.00022423,2]
[311771849,1705384249727,-500.0,0.00022423,2]
[311771850,1705384249737,-542.2,0.00022423,2]
[311771851,1705384249746,-503.84,0.00022423,2]
[311771852,1705384249756,-500.0,0.00022423,2]
[311771853,1705384249766,-3788.18,0.00022423,2]
[311771854,1705384249775,-500.0,0.00022423,2]
[311771855,1705384249785,-500.0,0.00022423,2]
[311771856,1705384249795,-3513.41,0.00022423,2]
[311771857,1705384249805,-500.0,0.00022423,2]
[311771858,1705384249815,-500.0,0.00022423,2]
[311771859,1705384249826,-3013.25,0.00022423,2]
[311771860,1705384249835,-787.69,0.00022423,2]
[311771861,1705384249845,-985.5,0.00022423,2]
[311771862,1705384249855,-2770.85,0.00022423,2]
[311771863,1705384249865,-500.0,0.00022423,2]
[311771864,1705384249875,-500.0,0.00022423,2]
[311771865,1705384249885,-500.0,0.00022423,2]
[311771866,1705384249895,-7462.29,0.00022423,2]
[311771867,1705384249904,-831.28,0.00022423,2]
[311771868,1705384249914,-500.0,0.00022423,2]
[311771869,1705384249924,-845.09,0.00022423,2]
[311771870,1705384249934,-2576.91,0.00022423,2]
[311771871,1705384249944,-2320.22,0.00022423,2]
[311771872,1705384249954,-500.0,0.00022423,2]
[311771873,1705384249964,-547.06,0.00022423,2]
[311771874,1705384249974,-1270.0,0.00022423,2]
[311771875,1705384249984,-500.0,0.00022423,2]
[311771876,1705384249994,-657.97,0.00022423,2]
[311771877,1705384250004,-509.58,0.00022423,2]
[311771878,1705384250014,-2098.9,0.00022423,2]
[311771879,1705384250024,-2574.35,0.00022423,2]
[311771880,1705384250034,-500.0,0.00022423,2]
[311771881,1705384250043,-500.0,0.00022423,2]
[311771882,1705384250053,-500.0,0.00022423,2]
[311771883,1705384250063,-4678.98,0.00022423,2]
[311771884,1705384250074,-575.29,0.00022423,2]
[311771885,1705384250084,-500.0,0.00022423,2]
[311771886,1705384250094,-1210.84,0.00022423,2]
[311771887,1705384250103,-698.05,0.00022423,2]
[311771888,1705384250114,-3263.35,0.00022423,2]
[311771889,1705384250133,-500.0,0.00022423,2]
[311771890,1705384250161,-620.95,0.00022423,2]
[311771891,1705384250170,-500.0,0.00022423,2]
[311771892,1705384250180,-2075.26,0.00022423,2]
[311771893,1705384250190,-598.52,0.00022423,2]
[311771894,1705384250200,-514.13,0.00022423,2]
[311771895,1705384250209,-1065.16,0.00022423,2]
[311771896,1705384250218,-1300.85,0.00022423,2]
[311771897,1705384250228,-500.0,0.00022423,2]
[311771898,1705384250238,-500.0,0.00022423,2]
[311771899,1705384250247,-705.41,0.00022423,2]
[311771900,1705384250257,-912.57,0.00022423,2]
[311771901,1705384250267,-1032.79,0.00022423,2]
[311771902,1705384250276,-874.61,0.00022423,2]
[311771903,1705384250286,-4376.83,0.00022423,2]
[311771904,1705384250296,-685.53,0.00022423,2]
[311771905,1705384250305,-3315.8,0.00022423,2]
[311771906,1705384250315,-1136.47,0.00022423,2]
[311771907,1705384250325,-500.0,0.00022423,2]
[311771908,1705384250334,-3161.92,0.00022423,2]
[311771909,1705384250344,-500.0,0.00022423,2]
[311771910,1705384250354,-500.0,0.00022423,2]
[311771911,1705384250363,-500.0,0.00022423,2]
[311771912,1705384250373,-500.0,0.00022423,2]
[311771913,1705384250382,-2110.94,0.00022423,2]
[311771914,1705384250392,-500.0,0.00022423,2]
[311771915,1705384250401,-562.48,0.00022423,2]
[311771916,1705384250411,-639.97,0.00022423,2]
[311771917,1705384250421,-1454.18,0.00022423,2]
[311771918,1705384250430,-588.65,0.00022423,2]
[311771919,1705384250440,-500.0,0.00022423,2]
[311771920,1705384250449,-500.0,0.00022423,2]
[311771921,1705384250459,-955.64,0.00022423,2]
[311771922,1705384250469,-503.9,0.00022423,2]
[311771923,1705384250478,-509.03,0.00022423,2]
[311771924,1705384250488,-1148.2,0.00022423,2]
[311771925,1705384250499,-805.89,0.00022423,2]
[311771926,1705384250509,-1016.8,0.00022423,2]
[311771927,1705384250519,-524.1,0.00022423,2]
[311771928,1705384250528,-500.0,0.00022423,2]
[311771929,1705384250538,-500.0,0.00022423,2]
[311771930,1705384250548,-500.0,0.00022423,2]
[311771931,1705384250558,-503.65,0.00022423,2]
[311771932,1705384250568,-914.57,0.00022423,2]
[311771933,1705384250578,-626.79,0.00022423,2]
[311771934,1705384250588,-500.0,0.00022424,2]
[311771935,1705384250598,-500.0,0.00022424,2]
[311771936,1705384250607,-500.0,0.00022424,2]
[311771937,1705384250617,-500.0,0.00022424,2]
[311771938,1705384250627,-500.0,0.00022424,2]
[311771939,1705384250636,-435.68703654,0.00022424,2]
[311771940,1705384250646,-500.0,0.00022424,2]
[311771941,1705384250655,-500.0,0.00022424,2]
[311771942,1705384250665,-543.43,0.00022424,2]
[311771943,1705384250674,-500.0,0.00022424,2]
[311771944,1705384250683,-500.0,0.00022424,2]
[311771945,1705384250693,-500.0,0.00022424,2]
[311771946,1705384250703,-500.0,0.00022424,2]
[311771947,1705384250712,-500.0,0.00022424,2]
[311771948,1705384250722,-566.26,0.00022424,2]
[311771949,1705384250732,-500.0,0.00022424,2]
[311771950,1705384250741,-500.0,0.00022424,2]
[311771951,1705384250751,-500.0,0.00022424,2]
[311771952,1705384250761,-288.33993621,0.00022424,2]
[311771953,1705384250770,-500.0,0.00022424,2]
[311771954,1705384250780,-500.0,0.00022424,2]
[311771955,1705384250789,-500.0,0.00022424,2]
[311771956,1705384250799,-416.73977101,0.00022424,2]
[311771957,1705384250809,-500.0,0.00022424,2]
[311771958,1705384250819,-500.0,0.00022424,2]
[311771959,1705384250830,-500.0,0.00022424,2]
[311771960,1705384250839,-500.0,0.00022424,2]
[311771961,1705384250849,-504.65,0.00022424,2]
[311771962,1705384250859,-500.0,0.00022424,2]
[311771963,1705384250868,-500.0,0.00022424,2]
[311771964,1705384250878,-528.67,0.00022424,2]
[311771965,1705384250887,-500.0,0.00022424,2]
[311771966,1705384250897,-500.0,0.00022424,2]
[311771967,1705384250906,-546.9,0.00022424,2]
[311771968,1705384250915,-500.0,0.00022424,2]
[311771969,1705384250925,-545.38,0.00022424,2]
[311771970,1705384250934,-500.0,0.00022424,2]
[311771971,1705384250944,-500.0,0.00022424,2]
[311771972,1705384250953,-500.0,0.00022424,2]
[311771973,1705384250963,-500.0,0.00022424,2]
[311771974,1705384250973,-500.0,0.00022424,2]
[311771975,1705384250983,-500.0,0.00022424,2]
[311771976,1705384250992,-500.0,0.00022424,2]
[311771977,1705384251002,-527.76,0.00022424,2]
[311771978,1705384251012,-500.0,0.00022424,2]
[311771979,1705384251022,-500.0,0.00022424,2]
[311771980,1705384251031,-500.0,0.00022424,2]
[311771981,1705384251041,-500.0,0.00022424,2]
[311771982,1705384251410,-500.0,0.00022424,2]
[311771983,1705384251420,-500.0,0.00022424,2]
[311771984,1705384251430,-500.0,0.00022424,2]
[311771985,1705384251440,-500.0,0.00022424,2]
[311771986,1705384251450,-500.0,0.00022424,2]
[311771987,1705384251463,-511.43,0.00022424,2]
[311771988,1705384251473,-500.0,0.00022424,2]
[311771989,1705384251483,-500.0,0.00022424,2]